[Event "Titled Tuesday Blitz July 26 Late 2022"]
[White "Ardila, Oscar Humberto"]
[Black "Martin Carmona, Gaston Manuel"]
[WhiteFideId "4404742"]
[BlackFideId "22284567"]
[WhiteElo "1956"]
[BlackElo "2162"]
[Result "0-1"]
[Round "03"]
[TimeControl "180+1"]
[Date "2022.07.27"]
[WhiteClock "0:00:02"]
[BlackClock "0:00:33"]

1. d4 {[%clk 0:02:59]}  Nf6 {[%clk 0:02:59]} 2. c4 {[%clk 0:02:59]}  g6 {[%clk 0:02:57]} 3. Nc3 {[%clk 0:02:59]}  Bg7 {[%clk 0:02:57]} 4. Nf3 {[%clk 0:02:57]}  d6 {[%clk 0:02:58]} 5. e3 {[%clk 0:02:54]}  O-O {[%clk 0:02:59]} 6. Be2 {[%clk 0:02:53]}  Nbd7 {[%clk 0:03:00]} 7. O-O {[%clk 0:02:37]}  e5 {[%clk 0:02:59]} 8. dxe5 {[%clk 0:02:36]}  dxe5 {[%clk 0:03:00]} 9. Qc2 {[%clk 0:02:35]}  c6 {[%clk 0:03:00]} 10. Rd1 {[%clk 0:02:35]}  Qc7 {[%clk 0:03:01]} 11. b3 {[%clk 0:02:35]}  a5 {[%clk 0:03:01]} 12. Ba3 {[%clk 0:02:34]}  Re8 {[%clk 0:03:02]} 13. Bd6 {[%clk 0:02:34]}  Qb6 {[%clk 0:03:02]} 14. Na4 {[%clk 0:02:33]}  Qa7 {[%clk 0:02:59]} 15. c5 {[%clk 0:02:32]}  Bf8 {[%clk 0:02:58]} 16. Rac1 {[%clk 0:02:21]}  e4 {[%clk 0:02:49]} 17. Ne1 {[%clk 0:01:52]}  Bxd6 {[%clk 0:02:48]} 18. Rxd6 {[%clk 0:01:51]}  Qb8 {[%clk 0:02:43]} 19. Rcd1 {[%clk 0:01:50]}  Nd5 {[%clk 0:02:40]} 20. Bc4 {[%clk 0:01:48]}  Nxc5 {[%clk 0:02:29]} 21. Bxd5 {[%clk 0:01:34]}  Nxa4 {[%clk 0:02:29]} 22. Bc4 {[%clk 0:01:20]}  Nb6 {[%clk 0:02:29]} 23. Qd2 {[%clk 0:01:12]}  Nxc4 {[%clk 0:02:25]} 24. bxc4 {[%clk 0:01:12]}  Be6 {[%clk 0:02:25]} 25. Qd4 {[%clk 0:01:10]}  Bxc4 {[%clk 0:02:23]} 26. Qxc4 {[%clk 0:00:59]}  Rf8 {[%clk 0:02:17]} 27. g3 {[%clk 0:00:53]}  Qc8 {[%clk 0:02:16]} 28. Ng2 {[%clk 0:00:52]}  Qg4 {[%clk 0:02:16]} 29. Qd4 {[%clk 0:00:45]}  Qg5 {[%clk 0:02:09]} 30. Qxe4 {[%clk 0:00:36]}  Rae8 {[%clk 0:02:10]} 31. Qd4 {[%clk 0:00:35]}  h5 {[%clk 0:02:08]} 32. Qf4 {[%clk 0:00:33]}  Qc5 {[%clk 0:02:06]} 33. Qd4 {[%clk 0:00:29]}  Qg5 {[%clk 0:02:06]} 34. h4 {[%clk 0:00:27]}  Qe7 {[%clk 0:02:05]} 35. Nf4 {[%clk 0:00:26]}  Kh7 {[%clk 0:01:58]} 36. Rd7 {[%clk 0:00:24]}  Qa3 {[%clk 0:01:58]} 37. Qc4 {[%clk 0:00:20]}  Re7 {[%clk 0:01:54]} 38. Qd4 {[%clk 0:00:18]}  Rxd7 {[%clk 0:01:52]} 39. Qxd7 {[%clk 0:00:18]}  Qxa2 {[%clk 0:01:51]} 40. Qxb7 {[%clk 0:00:16]}  c5 {[%clk 0:01:49]} 41. Qe7 {[%clk 0:00:15]}  Kg8 {[%clk 0:01:49]} 42. Rd7 {[%clk 0:00:15]}  Qb1+ {[%clk 0:01:46]} 43. Kh2 {[%clk 0:00:15]}  Qf5 {[%clk 0:01:47]} 44. Rc7 {[%clk 0:00:13]}  Qc2 {[%clk 0:01:45]} 45. Kg2 {[%clk 0:00:11]}  c4 {[%clk 0:01:45]} 46. Qc5 {[%clk 0:00:11]}  Qe4+ {[%clk 0:01:44]} 47. Kh2 {[%clk 0:00:11]}  Qf3 {[%clk 0:01:42]} 48. Qxc4 {[%clk 0:00:11]}  Qxf2+ {[%clk 0:01:42]} 49. Ng2 {[%clk 0:00:11]}  Qf5 {[%clk 0:01:38]} 50. Rc5 {[%clk 0:00:11]}  Qf3 {[%clk 0:01:35]} 51. Rxa5 {[%clk 0:00:10]}  Rd8 {[%clk 0:01:34]} 52. Rc5 {[%clk 0:00:09]}  Rd2 {[%clk 0:01:34]} 53. Rc8+ {[%clk 0:00:09]}  Kh7 {[%clk 0:01:35]} 54. Rh8+ {[%clk 0:00:03]}  Kxh8 {[%clk 0:01:35]} 55. Qc3+ {[%clk 0:00:04]}  Kg8 {[%clk 0:01:28]} 56. Qxd2 {[%clk 0:00:04]}  Kg7 {[%clk 0:01:29]} 57. Qd4+ {[%clk 0:00:04]}  Kh7 {[%clk 0:01:29]} 58. Qf4 {[%clk 0:00:05]}  Qd5 {[%clk 0:01:29]} 59. Qf6 {[%clk 0:00:05]}  Kg8 {[%clk 0:01:28]} 60. Qf4 {[%clk 0:00:06]}  Qe6 {[%clk 0:01:28]} 61. e4 {[%clk 0:00:06]}  Qc4 {[%clk 0:01:28]} 62. e5 {[%clk 0:00:07]}  Qe6 {[%clk 0:01:29]} 63. Qg5 {[%clk 0:00:07]}  Qa2 {[%clk 0:01:29]} 64. Qf6 {[%clk 0:00:08]}  Qd5 {[%clk 0:01:28]} 65. Kh3 {[%clk 0:00:08]}  Qd7+ {[%clk 0:01:28]} 66. Kh2 {[%clk 0:00:09]}  Qd5 {[%clk 0:01:27]} 67. Nf4 {[%clk 0:00:08]}  Qd2+ {[%clk 0:01:27]} 68. Kh3 {[%clk 0:00:08]}  Qe1 {[%clk 0:01:26]} 69. Qd8+ {[%clk 0:00:08]}  Kh7 {[%clk 0:01:26]} 70. Kh2 {[%clk 0:00:08]}  Qf2+ {[%clk 0:01:25]} 71. Ng2 {[%clk 0:00:07]}  Qe2 {[%clk 0:01:25]} 72. Qf6 {[%clk 0:00:08]}  Kg8 {[%clk 0:01:25]} 73. e6 {[%clk 0:00:07]}  fxe6 {[%clk 0:01:11]} 74. Qxg6+ {[%clk 0:00:07]}  Kf8 {[%clk 0:01:12]} 75. Qf6+ {[%clk 0:00:07]}  Ke8 {[%clk 0:01:12]} 76. Qh8+ {[%clk 0:00:07]}  Kd7 {[%clk 0:01:12]} 77. Qg7+ {[%clk 0:00:07]}  Kd6 {[%clk 0:01:12]} 78. Qf8+ {[%clk 0:00:07]}  Kd5 {[%clk 0:01:12]} 79. Qd8+ {[%clk 0:00:07]}  Kc6 {[%clk 0:01:13]} 80. Qc8+ {[%clk 0:00:07]}  Kd6 {[%clk 0:01:13]} 81. Qb8+ {[%clk 0:00:08]}  Kd7 {[%clk 0:01:13]} 82. Qf4 {[%clk 0:00:08]}  e5 {[%clk 0:01:13]} 83. Qe3 {[%clk 0:00:08]}  Qb2 {[%clk 0:01:11]} 84. Qg5 {[%clk 0:00:07]}  Qe2 {[%clk 0:01:09]} 85. Qf5+ {[%clk 0:00:07]}  Kd6 {[%clk 0:01:09]} 86. Qf8+ {[%clk 0:00:07]}  Kd5 {[%clk 0:01:09]} 87. Qd8+ {[%clk 0:00:07]}  Ke6 {[%clk 0:01:09]} 88. Qc8+ {[%clk 0:00:07]}  Kd6 {[%clk 0:01:09]} 89. Qb8+ {[%clk 0:00:07]}  Ke6 {[%clk 0:01:10]} 90. Qe8+ {[%clk 0:00:07]}  Kd6 {[%clk 0:01:10]} 91. Kg1 {[%clk 0:00:07]}  Qd1+ {[%clk 0:01:10]} 92. Kh2 {[%clk 0:00:06]}  Qe2 {[%clk 0:01:10]} 93. Qg6+ {[%clk 0:00:05]}  Kd7 {[%clk 0:01:09]} 94. Qh7+ {[%clk 0:00:05]}  Kd6 {[%clk 0:01:10]} 95. Qh6+ {[%clk 0:00:03]}  Kd5 {[%clk 0:01:09]} 96. Qe3 {[%clk 0:00:03]}  Qg4 {[%clk 0:01:09]} 97. Qd2+ {[%clk 0:00:03]}  Ke6 {[%clk 0:01:09]} 98. Ne3 {[%clk 0:00:04]}  Qe4 {[%clk 0:01:08]} 99. Kg1 {[%clk 0:00:04]}  Qf3 {[%clk 0:01:08]} 100. Qf2 {[%clk 0:00:05]}  Qe4 {[%clk 0:01:07]} 101. Kh2 {[%clk 0:00:05]}  Kd6 {[%clk 0:01:05]} 102. Nf5+ {[%clk 0:00:05]}  Kd7 {[%clk 0:01:05]} 103. Ng7 {[%clk 0:00:04]}  Qg6 {[%clk 0:01:02]} 104. Nf5 {[%clk 0:00:03]}  Ke6 {[%clk 0:01:01]} 105. Ne3 {[%clk 0:00:03]}  Qe4 {[%clk 0:01:00]} 106. Nc2 {[%clk 0:00:02]}  Qc4 {[%clk 0:00:59]} 107. Qd2 {[%clk 0:00:02]}  e4 {[%clk 0:00:57]} 108. Ne3 {[%clk 0:00:03]}  Qc5 {[%clk 0:00:56]} 109. Qf2 {[%clk 0:00:03]}  Qe5 {[%clk 0:00:56]} 110. Qf4 {[%clk 0:00:03]}  Qb2+ {[%clk 0:00:55]} 111. Ng2 {[%clk 0:00:03]}  Qe2 {[%clk 0:00:54]} 112. Qh6+ {[%clk 0:00:03]}  Kd5 {[%clk 0:00:54]} 113. Qg5+ {[%clk 0:00:03]}  Kd4 {[%clk 0:00:54]} 114. Qf6+ {[%clk 0:00:04]}  Kd3 {[%clk 0:00:54]} 115. Qd6+ {[%clk 0:00:04]}  Kc2 {[%clk 0:00:54]} 116. Qc6+ {[%clk 0:00:04]}  Kd3 {[%clk 0:00:54]} 117. Qd5+ {[%clk 0:00:05]}  Kc2 {[%clk 0:00:54]} 118. Qc5+ {[%clk 0:00:04]}  Kd2 {[%clk 0:00:53]} 119. Qb4+ {[%clk 0:00:04]}  Kc2 {[%clk 0:00:51]} 120. Qa4+ {[%clk 0:00:04]}  Kb1 {[%clk 0:00:50]} 121. Qb3+ {[%clk 0:00:03]}  Ka1 {[%clk 0:00:50]} 122. Qc3+ {[%clk 0:00:04]}  Kb1 {[%clk 0:00:50]} 123. Qb3+ {[%clk 0:00:04]}  Ka1 {[%clk 0:00:50]} 124. Qa3+ {[%clk 0:00:04]}  Kb1 {[%clk 0:00:51]} 125. Qe3 {[%clk 0:00:05]}  Qc2 {[%clk 0:00:49]} 126. Kh3 {[%clk 0:00:05]}  Qc8+ {[%clk 0:00:48]} 127. Kh2 {[%clk 0:00:05]}  Qc2 {[%clk 0:00:49]} 128. Qe1+ {[%clk 0:00:04]}  Kb2 {[%clk 0:00:47]} 129. Kg1 {[%clk 0:00:04]}  Qd3 {[%clk 0:00:46]} 130. Qf2+ {[%clk 0:00:04]}  Kb1 {[%clk 0:00:45]} 131. Nf4 {[%clk 0:00:03]}  Qc4 {[%clk 0:00:36]} 132. Kg2 {[%clk 0:00:03]}  Qc6 {[%clk 0:00:35]} 133. Qe2 {[%clk 0:00:03]}  e3+ {[%clk 0:00:34]} 134. Kh2 {[%clk 0:00:03]}  Qe4 {[%clk 0:00:34]} 135. Qg2 {[%clk 0:00:03]}  Qe5 {[%clk 0:00:32]} 136. Qe2 {[%clk 0:00:03]}  Ka1 {[%clk 0:00:31]} 137. Qxh5 {[%clk 0:00:03]}  Qxh5 {[%clk 0:00:30]} 138. Nxh5 {[%clk 0:00:02]}  e2 {[%clk 0:00:31]} 139. Nf4 {[%clk 0:00:01]}  e1=Q {[%clk 0:00:32]} 140. Ng2 {[%clk 0:00:02]}  Qf2 {[%clk 0:00:32]} 141. Kh3 {[%clk 0:00:02]}  Qf5+ {[%clk 0:00:31]} 142. g4 {[%clk 0:00:03]}  Qf3+ {[%clk 0:00:32]} 143. Kh2 {[%clk 0:00:02]}  Qxg4 {[%clk 0:00:33]} 0-1


[Site "https://www.chess.com"]

[Event "Titled Tuesday Blitz July 26 Late 2022"]
[White "Averjanov, Alexey"]
[Black "Gallana, Marco"]
[WhiteFideId "14109867"]
[BlackFideId "824542"]
[WhiteElo "2631"]
[BlackElo "2290"]
[Result "0-1"]
[Round "03"]
[TimeControl "180+1"]
[Date "2022.07.26"]
[WhiteClock "0:01:18"]
[BlackClock "0:00:05"]

1. d4 {[%clk 0:03:00]}  Nf6 {[%clk 0:02:58]} 2. c4 {[%clk 0:03:00]}  d6 {[%clk 0:02:58]} 3. Nc3 {[%clk 0:03:00]}  e5 {[%clk 0:02:58]} 4. Nf3 {[%clk 0:02:59]}  Nbd7 {[%clk 0:02:58]} 5. e4 {[%clk 0:02:59]}  g6 {[%clk 0:02:58]} 6. g3 {[%clk 0:02:59]}  Bg7 {[%clk 0:02:58]} 7. Bg2 {[%clk 0:02:59]}  O-O {[%clk 0:02:58]} 8. O-O {[%clk 0:02:59]}  exd4 {[%clk 0:02:58]} 9. Nxd4 {[%clk 0:03:00]}  Re8 {[%clk 0:02:56]} 10. b3 {[%clk 0:02:59]}  Nc5 {[%clk 0:02:47]} 11. Re1 {[%clk 0:02:58]}  h6 {[%clk 0:02:28]} 12. Bb2 {[%clk 0:02:58]}  c6 {[%clk 0:02:16]} 13. Qc2 {[%clk 0:02:58]}  Nfd7 {[%clk 0:01:59]} 14. Rad1 {[%clk 0:02:56]}  Qc7 {[%clk 0:01:58]} 15. b4 {[%clk 0:02:50]}  Ne6 {[%clk 0:01:53]} 16. Nxe6 {[%clk 0:02:50]}  Rxe6 {[%clk 0:01:53]} 17. a3 {[%clk 0:02:46]}  Ne5 {[%clk 0:01:51]} 18. Qb3 {[%clk 0:02:46]}  Re8 {[%clk 0:01:49]} 19. Ne2 {[%clk 0:02:44]}  Be6 {[%clk 0:01:41]} 20. Bxe5 {[%clk 0:02:33]}  dxe5 {[%clk 0:01:39]} 21. Qc3 {[%clk 0:02:30]}  c5 {[%clk 0:01:21]} 22. b5 {[%clk 0:02:28]}  Red8 {[%clk 0:01:19]} 23. Qb3 {[%clk 0:02:26]}  Qa5 {[%clk 0:01:05]} 24. Nc3 {[%clk 0:02:25]}  Rd4 {[%clk 0:01:04]} 25. Nd5 {[%clk 0:02:22]}  Bf8 {[%clk 0:00:53]} 26. Rf1 {[%clk 0:02:17]}  a6 {[%clk 0:00:48]} 27. Rxd4 {[%clk 0:02:15]}  cxd4 {[%clk 0:00:47]} 28. a4 {[%clk 0:02:14]}  axb5 {[%clk 0:00:44]} 29. axb5 {[%clk 0:02:15]}  Qa3 {[%clk 0:00:42]} 30. Qxa3 {[%clk 0:02:13]}  Rxa3 {[%clk 0:00:42]} 31. Rc1 {[%clk 0:02:11]}  Bc5 {[%clk 0:00:40]} 32. Bf1 {[%clk 0:02:09]}  d3 {[%clk 0:00:37]} 33. Rd1 {[%clk 0:02:03]}  Ra2 {[%clk 0:00:32]} 34. Ne3 {[%clk 0:01:48]}  Bxe3 {[%clk 0:00:22]} 35. fxe3 {[%clk 0:01:49]}  d2 {[%clk 0:00:11]} 36. Kf2 {[%clk 0:01:48]}  b6 {[%clk 0:00:10]} 37. h3 {[%clk 0:01:47]}  Rc2 {[%clk 0:00:10]} 38. Bd3 {[%clk 0:01:44]}  Rb2 {[%clk 0:00:06]} 39. g4 {[%clk 0:01:43]}  h5 {[%clk 0:00:06]} 40. Be2 {[%clk 0:01:34]}  hxg4 {[%clk 0:00:05]} 41. Bxg4 {[%clk 0:01:35]}  Bxc4 {[%clk 0:00:05]} 42. Be2 {[%clk 0:01:34]}  Bb3 {[%clk 0:00:05]} 43. Rb1 {[%clk 0:01:18]}  Rxb1 {[%clk 0:00:05]} 0-1


[Site "https://www.chess.com"]

[Event "Titled Tuesday Blitz July 26 Late 2022"]
[White "Barp, Alberto"]
[Black "De Gleria, Francesco"]
[WhiteFideId "872555"]
[BlackFideId "4630394"]
[WhiteElo "2229"]
[BlackElo "2283"]
[Result "0-1"]
[Round "03"]
[TimeControl "180+1"]
[Date "2022.07.26"]
[WhiteClock "0:00:34"]
[BlackClock "0:00:18"]

1. d4 {[%clk 0:03:00]}  Nf6 {[%clk 0:02:59]} 2. Nf3 {[%clk 0:02:57]}  g6 {[%clk 0:02:58]} 3. Bf4 {[%clk 0:02:56]}  Bg7 {[%clk 0:02:56]} 4. Nc3 {[%clk 0:02:57]}  d5 {[%clk 0:02:52]} 5. h4 {[%clk 0:02:56]}  h5 {[%clk 0:02:49]} 6. e3 {[%clk 0:02:55]}  c6 {[%clk 0:02:45]} 7. Bd3 {[%clk 0:02:47]}  Nbd7 {[%clk 0:02:37]} 8. Qe2 {[%clk 0:02:44]}  b5 {[%clk 0:02:31]} 9. a3 {[%clk 0:02:37]}  Nb6 {[%clk 0:02:25]} 10. e4 {[%clk 0:02:34]}  dxe4 {[%clk 0:02:21]} 11. Nxe4 {[%clk 0:02:35]}  Nxe4 {[%clk 0:02:11]} 12. Bxe4 {[%clk 0:02:36]}  Nd5 {[%clk 0:02:11]} 13. Bg5 {[%clk 0:02:34]}  Bg4 {[%clk 0:01:57]} 14. O-O {[%clk 0:02:33]}  O-O {[%clk 0:01:52]} 15. Rfe1 {[%clk 0:02:33]}  Re8 {[%clk 0:01:50]} 16. Rad1 {[%clk 0:02:32]}  Qd6 {[%clk 0:01:37]} 17. Qd2 {[%clk 0:02:32]}  Rac8 {[%clk 0:01:30]} 18. c3 {[%clk 0:02:31]}  e6 {[%clk 0:01:23]} 19. Rc1 {[%clk 0:02:27]}  a5 {[%clk 0:01:10]} 20. Ne5 {[%clk 0:02:23]}  Bf5 {[%clk 0:01:07]} 21. Bf3 {[%clk 0:02:21]}  a4 {[%clk 0:01:03]} 22. Bh6 {[%clk 0:02:17]}  Nb6 {[%clk 0:00:57]} 23. Bxg7 {[%clk 0:02:14]}  Kxg7 {[%clk 0:00:57]} 24. Qf4 {[%clk 0:02:13]}  f6 {[%clk 0:00:50]} 25. Nxg6 {[%clk 0:02:13]}  Qd7 {[%clk 0:00:35]} 26. Ne5 {[%clk 0:01:13]}  fxe5 {[%clk 0:00:35]} 27. Qxe5+ {[%clk 0:01:14]}  Kh7 {[%clk 0:00:35]} 28. Bxh5 {[%clk 0:01:13]}  Rg8 {[%clk 0:00:35]} 29. Bf3 {[%clk 0:01:05]}  Nc4 {[%clk 0:00:34]} 30. Qe2 {[%clk 0:00:57]}  Qf7 {[%clk 0:00:32]} 31. Be4 {[%clk 0:00:56]}  Rcf8 {[%clk 0:00:30]} 32. Rc2 {[%clk 0:00:51]}  Bxe4 {[%clk 0:00:27]} 33. Qxe4+ {[%clk 0:00:52]}  Qf5 {[%clk 0:00:26]} 34. Qxf5+ {[%clk 0:00:52]}  exf5 {[%clk 0:00:24]} 35. Re6 {[%clk 0:00:52]}  Rg6 {[%clk 0:00:23]} 36. Rce2 {[%clk 0:00:51]}  Rfg8 {[%clk 0:00:22]} 37. Rxg6 {[%clk 0:00:46]}  Rxg6 {[%clk 0:00:22]} 38. g3 {[%clk 0:00:47]}  Kg7 {[%clk 0:00:21]} 39. Kg2 {[%clk 0:00:47]}  Kf7 {[%clk 0:00:22]} 40. Kf3 {[%clk 0:00:48]}  Re6 {[%clk 0:00:22]} 41. Rc2 {[%clk 0:00:39]}  Re1 {[%clk 0:00:21]} 42. Kf4 {[%clk 0:00:36]}  Kf6 {[%clk 0:00:20]} 43. f3 {[%clk 0:00:36]}  Ne3 {[%clk 0:00:19]} 44. Rh2 {[%clk 0:00:34]}  Nd5# {[%clk 0:00:18]} 0-1


[Site "https://www.chess.com"]

[Event "Titled Tuesday Blitz July 26 Late 2022"]
[White "Bortnyk, Mykola"]
[Black "Agasarov, Benik"]
[WhiteFideId "14120836"]
[BlackFideId "13314823"]
[WhiteElo "2582"]
[BlackElo "2620"]
[Result "1-0"]
[Round "03"]
[TimeControl "180+1"]
[Date "2022.07.26"]
[WhiteClock "0:02:55"]
[BlackClock "0:01:50"]

1. e4 {[%clk 0:03:00]}  e5 {[%clk 0:02:58]} 2. Nf3 {[%clk 0:03:00]}  Nf6 {[%clk 0:02:58]} 3. Nxe5 {[%clk 0:03:00]}  d6 {[%clk 0:02:58]} 4. Nxf7 {[%clk 0:03:00]}  Kxf7 {[%clk 0:02:58]} 5. d4 {[%clk 0:03:00]}  c5 {[%clk 0:02:54]} 6. Nc3 {[%clk 0:03:01]}  cxd4 {[%clk 0:02:50]} 7. Bc4+ {[%clk 0:03:00]}  Be6 {[%clk 0:02:49]} 8. Bxe6+ {[%clk 0:02:59]}  Kxe6 {[%clk 0:02:49]} 9. Qxd4 {[%clk 0:03:00]}  Nc6 {[%clk 0:02:49]} 10. Qc4+ {[%clk 0:03:00]}  Kd7 {[%clk 0:02:48]} 11. Bf4 {[%clk 0:03:00]}  Nh5 {[%clk 0:01:55]} 12. Qf7+ {[%clk 0:02:57]}  Qe7 {[%clk 0:01:50]} 13. Qxh5 {[%clk 0:02:57]}  g6 {[%clk 0:01:51]} 14. Qb5 {[%clk 0:02:56]}  Bg7 {[%clk 0:01:50]} 15. Qxb7+ {[%clk 0:02:55]} 1-0


[Site "https://www.chess.com"]

[Event "Titled Tuesday Blitz July 26 Late 2022"]
[White "Chen, Justin"]
[Black "Djokic, Mihailo"]
[WhiteFideId "2098199"]
[BlackFideId "976440"]
[WhiteElo "2289"]
[BlackElo "2246"]
[Result "1-0"]
[Round "03"]
[TimeControl "180+1"]
[Date "2022.07.27"]
[WhiteClock "0:00:06"]
[BlackClock "0:00:15"]

1. e4 {[%clk 0:03:00]}  c5 {[%clk 0:02:59]} 2. Nc3 {[%clk 0:03:00]}  Nc6 {[%clk 0:02:59]} 3. g3 {[%clk 0:03:01]}  g6 {[%clk 0:02:58]} 4. Bg2 {[%clk 0:03:01]}  Bg7 {[%clk 0:02:56]} 5. d3 {[%clk 0:03:01]}  d6 {[%clk 0:02:50]} 6. Nge2 {[%clk 0:03:02]}  e6 {[%clk 0:02:40]} 7. O-O {[%clk 0:03:02]}  Nge7 {[%clk 0:02:38]} 8. Be3 {[%clk 0:03:02]}  Nd4 {[%clk 0:02:35]} 9. Qd2 {[%clk 0:03:03]}  Rb8 {[%clk 0:02:25]} 10. Nd1 {[%clk 0:02:57]}  b5 {[%clk 0:02:17]} 11. Nxd4 {[%clk 0:02:39]}  cxd4 {[%clk 0:02:14]} 12. Bh6 {[%clk 0:02:40]}  O-O {[%clk 0:02:13]} 13. c3 {[%clk 0:02:35]}  dxc3 {[%clk 0:02:03]} 14. Nxc3 {[%clk 0:02:36]}  b4 {[%clk 0:02:03]} 15. Ne2 {[%clk 0:02:31]}  Bxh6 {[%clk 0:01:55]} 16. Qxh6 {[%clk 0:02:32]}  Ba6 {[%clk 0:01:55]} 17. Qd2 {[%clk 0:02:08]}  e5 {[%clk 0:01:48]} 18. Rfd1 {[%clk 0:01:58]}  d5 {[%clk 0:01:35]} 19. exd5 {[%clk 0:01:45]}  Nxd5 {[%clk 0:01:36]} 20. d4 {[%clk 0:01:46]}  Nb6 {[%clk 0:01:30]} 21. b3 {[%clk 0:01:23]}  Bxe2 {[%clk 0:01:04]} 22. Qxe2 {[%clk 0:01:24]}  exd4 {[%clk 0:01:04]} 23. Qg4 {[%clk 0:00:59]}  Qf6 {[%clk 0:00:59]} 24. Qxd4 {[%clk 0:00:56]}  Qxd4 {[%clk 0:00:50]} 25. Rxd4 {[%clk 0:00:57]}  a5 {[%clk 0:00:50]} 26. a3 {[%clk 0:00:49]}  bxa3 {[%clk 0:00:38]} 27. Rxa3 {[%clk 0:00:50]}  Nc8 {[%clk 0:00:37]} 28. Rda4 {[%clk 0:00:39]}  Rd8 {[%clk 0:00:32]} 29. Be4 {[%clk 0:00:17]}  Rd1+ {[%clk 0:00:27]} 30. Kg2 {[%clk 0:00:18]}  Nd6 {[%clk 0:00:28]} 31. Bf3 {[%clk 0:00:12]}  Rd3 {[%clk 0:00:26]} 32. Rxa5 {[%clk 0:00:06]}  Rbxb3 {[%clk 0:00:24]} 33. Rxb3 {[%clk 0:00:07]}  Rxb3 {[%clk 0:00:24]} 34. Re5 {[%clk 0:00:05]}  Kg7 {[%clk 0:00:24]} 35. Re7 {[%clk 0:00:05]}  Nf5 {[%clk 0:00:24]} 36. Rxf7+ {[%clk 0:00:02]}  Kxf7 {[%clk 0:00:24]} 37. Bd5+ {[%clk 0:00:02]}  Kf6 {[%clk 0:00:25]} 38. Bxb3 {[%clk 0:00:03]}  Ke5 {[%clk 0:00:25]} 39. Bc2 {[%clk 0:00:03]}  Nd4 {[%clk 0:00:25]} 40. Bd3 {[%clk 0:00:03]}  Ne6 {[%clk 0:00:25]} 41. Be2 {[%clk 0:00:02]}  Nd4 {[%clk 0:00:25]} 42. Bd1 {[%clk 0:00:02]}  g5 {[%clk 0:00:24]} 43. Bg4 {[%clk 0:00:02]}  h6 {[%clk 0:00:23]} 44. Kf1 {[%clk 0:00:02]}  Nb3 {[%clk 0:00:23]} 45. Ke2 {[%clk 0:00:02]}  Nc5 {[%clk 0:00:22]} 46. Ke3 {[%clk 0:00:02]}  Kf6 {[%clk 0:00:22]} 47. Bf3 {[%clk 0:00:03]}  Ne6 {[%clk 0:00:22]} 48. Bd5 {[%clk 0:00:02]}  Ng7 {[%clk 0:00:22]} 49. Be4 {[%clk 0:00:03]}  Ke5 {[%clk 0:00:22]} 50. Bd3 {[%clk 0:00:02]}  Ne6 {[%clk 0:00:22]} 51. Bc4 {[%clk 0:00:02]}  Nc7 {[%clk 0:00:22]} 52. Kf3 {[%clk 0:00:02]}  Ne8 {[%clk 0:00:22]} 53. Bd3 {[%clk 0:00:01]}  Kd4 {[%clk 0:00:22]} 54. Bb1 {[%clk 0:00:02]}  Nd6 {[%clk 0:00:22]} 55. Kg4 {[%clk 0:00:02]}  Ke5 {[%clk 0:00:21]} 56. Kh5 {[%clk 0:00:02]}  Kf6 {[%clk 0:00:18]} 57. Kxh6 {[%clk 0:00:02]}  Nf7+ {[%clk 0:00:18]} 58. Kh5 {[%clk 0:00:02]}  Ne5 {[%clk 0:00:18]} 59. h4 {[%clk 0:00:02]}  g4 {[%clk 0:00:18]} 60. Bc2 {[%clk 0:00:01]}  Ke6 {[%clk 0:00:17]} 61. Kg5 {[%clk 0:00:01]}  Kd5 {[%clk 0:00:16]} 62. Kf4 {[%clk 0:00:02]}  Ke6 {[%clk 0:00:16]} 63. Bf5+ {[%clk 0:00:02]}  Kf6 {[%clk 0:00:16]} 64. Bxg4 {[%clk 0:00:03]}  Nd3+ {[%clk 0:00:16]} 65. Kf3 {[%clk 0:00:02]}  Ne5+ {[%clk 0:00:17]} 66. Kf4 {[%clk 0:00:03]}  Nd3+ {[%clk 0:00:17]} 67. Ke3 {[%clk 0:00:04]}  Ne5 {[%clk 0:00:17]} 68. Be2 {[%clk 0:00:04]}  Kf5 {[%clk 0:00:17]} 69. f4 {[%clk 0:00:04]}  Nf7 {[%clk 0:00:17]} 70. g4+ {[%clk 0:00:04]}  Kf6 {[%clk 0:00:17]} 71. Kf3 {[%clk 0:00:04]}  Nd6 {[%clk 0:00:17]} 72. Bd3 {[%clk 0:00:04]}  Nb7 {[%clk 0:00:16]} 73. g5+ {[%clk 0:00:05]}  Kg7 {[%clk 0:00:17]} 74. h5 {[%clk 0:00:06]}  Nc5 {[%clk 0:00:17]} 75. h6+ {[%clk 0:00:06]}  Kf7 {[%clk 0:00:17]} 76. Bc2 {[%clk 0:00:06]}  Nd7 {[%clk 0:00:16]} 77. Kg4 {[%clk 0:00:07]}  Nb6 {[%clk 0:00:16]} 78. Bb3+ {[%clk 0:00:07]}  Kf8 {[%clk 0:00:15]} 79. f5 {[%clk 0:00:06]} 1-0


[Site "https://www.chess.com"]

[Event "Titled Tuesday Blitz July 26 Late 2022"]
[White "Clawitter, Craig"]
[Black "Mazibuko, Khanya"]
[WhiteFideId "2023105"]
[BlackFideId "14321041"]
[WhiteElo "2203"]
[BlackElo "1873"]
[Result "0-1"]
[Round "03"]
[TimeControl "180+1"]
[Date "2022.07.27"]
[WhiteClock "0:00:03"]
[BlackClock "0:00:17"]

1. e4 {[%clk 0:02:57]}  e5 {[%clk 0:02:59]} 2. Nf3 {[%clk 0:02:57]}  Nc6 {[%clk 0:02:58]} 3. Bb5 {[%clk 0:02:55]}  a6 {[%clk 0:02:58]} 4. Ba4 {[%clk 0:02:55]}  Nf6 {[%clk 0:02:57]} 5. O-O {[%clk 0:02:52]}  Be7 {[%clk 0:02:55]} 6. d3 {[%clk 0:02:49]}  b5 {[%clk 0:02:54]} 7. Bb3 {[%clk 0:02:49]}  d6 {[%clk 0:02:55]} 8. a4 {[%clk 0:02:47]}  Bd7 {[%clk 0:02:54]} 9. Nc3 {[%clk 0:02:45]}  b4 {[%clk 0:02:53]} 10. Nd5 {[%clk 0:02:45]}  O-O {[%clk 0:02:53]} 11. a5 {[%clk 0:02:42]}  Bg4 {[%clk 0:02:49]} 12. Be3 {[%clk 0:02:34]}  Nd4 {[%clk 0:02:46]} 13. Bxd4 {[%clk 0:02:33]}  exd4 {[%clk 0:02:47]} 14. h3 {[%clk 0:02:31]}  Bxf3 {[%clk 0:02:47]} 15. Qxf3 {[%clk 0:02:31]}  c5 {[%clk 0:02:43]} 16. Nb6 {[%clk 0:02:05]}  Rb8 {[%clk 0:02:36]} 17. g4 {[%clk 0:02:04]}  Nd7 {[%clk 0:02:30]} 18. Nd5 {[%clk 0:02:00]}  Ne5 {[%clk 0:02:28]} 19. Qg3 {[%clk 0:02:00]}  Bh4 {[%clk 0:02:26]} 20. Qg2 {[%clk 0:01:53]}  c4 {[%clk 0:02:08]} 21. dxc4 {[%clk 0:01:46]}  d3 {[%clk 0:01:55]} 22. f4 {[%clk 0:01:39]}  Nc6 {[%clk 0:01:54]} 23. cxd3 {[%clk 0:01:14]}  Nxa5 {[%clk 0:01:49]} 24. Bc2 {[%clk 0:00:57]}  Nc6 {[%clk 0:01:40]} 25. Rxa6 {[%clk 0:00:45]}  Nd4 {[%clk 0:01:38]} 26. Ba4 {[%clk 0:00:13]}  Ra8 {[%clk 0:01:38]} 27. Bb5 {[%clk 0:00:14]}  Rxa6 {[%clk 0:01:36]} 28. Bxa6 {[%clk 0:00:13]}  Qa8 {[%clk 0:01:36]} 29. Bb5 {[%clk 0:00:11]}  Qa7 {[%clk 0:01:31]} 30. Kh2 {[%clk 0:00:09]}  Ra8 {[%clk 0:01:30]} 31. g5 {[%clk 0:00:09]}  Qa2 {[%clk 0:01:12]} 32. f5 {[%clk 0:00:09]}  Bxg5 {[%clk 0:00:54]} 33. Qxg5 {[%clk 0:00:09]}  Qxb2+ {[%clk 0:00:54]} 34. Qg2 {[%clk 0:00:09]}  Ra2 {[%clk 0:00:52]} 35. Qxb2 {[%clk 0:00:07]}  Rxb2+ {[%clk 0:00:53]} 36. Kh1 {[%clk 0:00:06]}  Ne2 {[%clk 0:00:51]} 37. f6 {[%clk 0:00:05]}  Ng3+ {[%clk 0:00:50]} 38. Kg1 {[%clk 0:00:05]}  Nxf1 {[%clk 0:00:49]} 39. Kxf1 {[%clk 0:00:06]}  Rd2 {[%clk 0:00:40]} 40. Nxb4 {[%clk 0:00:06]}  gxf6 {[%clk 0:00:39]} 41. Ke1 {[%clk 0:00:05]}  Rh2 {[%clk 0:00:38]} 42. Bd7 {[%clk 0:00:05]}  Kf8 {[%clk 0:00:36]} 43. Bf5 {[%clk 0:00:05]}  h5 {[%clk 0:00:35]} 44. Nd5 {[%clk 0:00:05]}  Kg7 {[%clk 0:00:33]} 45. Nf4 {[%clk 0:00:05]}  h4 {[%clk 0:00:31]} 46. d4 {[%clk 0:00:05]}  Rc2 {[%clk 0:00:28]} 47. c5 {[%clk 0:00:04]}  dxc5 {[%clk 0:00:27]} 48. e5 {[%clk 0:00:04]}  Rc3 {[%clk 0:00:22]} 49. exf6+ {[%clk 0:00:04]}  Kf8 {[%clk 0:00:18]} 50. Nh5 {[%clk 0:00:04]}  cxd4 {[%clk 0:00:17]} 51. Nf4 {[%clk 0:00:03]}  Rf3 {[%clk 0:00:17]} 0-1


[Site "https://www.chess.com"]